{"text_format":"3","workbook":"xlsx","n_sheets":1,"sheets":["Bramfischer - Fire"],"not_rendered":{"defined_names":1},"read":"whole","date_system":"1900"}

{"sheet":"Bramfischer - Fire","index":0,"n_rows":421,"n_cols":9,"rows_kept":421,"merged":[[0,5,0,6]]}
[]
[null,"ITEM NO","DESCRIPTION","UNIT","QTY","RATE","AMOUNT"]
[null,null,"SCHEDULE 1 : "]
[null,{"v":1,"d":"1.000"},"PRELIMINARY & GENERAL ITEMS"]
[]
[]
[null,{"$f":"B4+0.001","v":1.001},"Clearance of Rubbish","Item",1]
[]
[null,{"$f":"B7+0.001","v":{"v":1.0019999999999998,"d":"1.002"}},"Retention Interest","Item",1]
[]
[null,{"$f":"B9+0.001","v":{"v":1.0029999999999997,"d":"1.003"}},"Site Establishment & Clearance","Item",1]
[]
[null,{"$f":"B11+0.001","v":{"v":1.0039999999999996,"d":"1.004"}},"Scaffolding","Item",1]
[]
[null,{"$f":"B13+0.001","v":{"v":1.0049999999999994,"d":"1.005"}},"Tests and Inspections","Item",1]
[]
[null,{"$f":"B15+0.001","v":{"v":1.0059999999999993,"d":"1.006"}},"Preparation of Operating and Maintenance Manuals","Item",3]
[]
[null,{"$f":"B17+0.001","v":{"v":1.0069999999999992,"d":"1.007"}},"As-built Drawings","Item",1]
[]
[null,{"$f":"B19+0.001","v":{"v":1.0079999999999991,"d":"1.008"}},"12 Months Guarantee and Maintenance","Item",1]
[]
[null,{"$f":"B21+0.001","v":{"v":1.008999999999999,"d":"1.009"}},"Programming of the Work","Item",1]
[]
[null,{"$f":"B23+0.001","v":{"v":1.009999999999999,"d":"1.010"}},"Testing, Balancing & Commissioning","Item",1]
[]
[null,{"$f":"B25+0.001","v":{"v":1.0109999999999988,"d":"1.011"}},"Equipment Submissions","Item",1]
[]
[null,{"$f":"B27+0.001","v":{"v":1.0119999999999987,"d":"1.012"}},"Contract Drawings","Item",1]
[]
[null,{"$f":"B29+0.001","v":{"v":1.0129999999999986,"d":"1.013"}},"Equipment Labels","Item",1]
[]
[null,{"$f":"B31+0.001","v":{"v":1.0139999999999985,"d":"1.014"}},"Water & Power for commissioning If JBCC Document","Item",1]
[null,null,"Any additional items of preliminary nature  that the tenderer may wish to add to comply with requirements of the specification and/or bill of quantities."]
[null,null,"(To be listed hereunder by the Tenderer)"]
[null,"i",null,"Item",1]
[null,"ii",null,"Item",1]
[null,null,"Sub-contractors to be present at all site meeting at least on a two weekly basis and more frequently as buildings become ready/ available for installations."]
{"$rows_empty":28}
[null,null,"CARRIED TO FINAL SUMMARY",null,"R"]
[null,null,{"$f":"C3","v":"SCHEDULE 1 : "}]
[null,null,{"$f":"C4","v":"PRELIMINARY & GENERAL ITEMS"}]
[]
[]
[null,"ITEM NO","DESCRIPTION","UNIT","QTY","RATE","AMOUNT"]
[null,null,"SCHEDULE 2: "]
[null,{"v":2,"d":"2.000"}," FIRE DETECTION INSTALLATIONS"]
[]
[null,null,"Wired Fire Detection Installations"]
[null,null,"The Fire detection shall comply with SANS10400 and SANS 10139, for public buildings. The fire detection system shall be provided throughout the facilities (System catagory L1 and P) and be an addressable fire detection system. ",{"$nulls":3},"Note"]
[null,null,"Systems in explosive gas or dust atmosphere shall comply with SANS 60079-14 and EN 61241-17",{"$nulls":3},"Note"]
[null,null,"Standby Battery supplies for any part of the system shall be capable of maintaining the system in normal operation for at least 24hr, after which there shall be sufficient capacity to operate all sounders in evacuation mode for at least 30 min. ",{"$nulls":3},"Note"]
[]
[null,null,"New Fire Detection Panel at The Apron Office"]
[null,{"$f":"B74+0.001","v":2.001},"4 Loop Analogue Control Panel, 230V, EN54 approved [ZP2-4L]","No",1,null,{"$f":"E82*F82","v":0}]
[]
[null,{"$f":"B82+0.001","v":2.002},"Battery 12V 26 AH","No",1,null,{"$f":"E84*F84","v":0}]
[]
[null,{"$f":"B84+0.001","v":{"v":2.0029999999999997,"d":"2.003"}},"ZP2 accessory plate and on board printer","No",1,null,{"$f":"E86*F86","v":0}]
[]
[null,{"$f":"B86+0.001","v":{"v":2.0039999999999996,"d":"2.004"}},"ZPAB-RS232 board","No",1,null,{"$f":"E88*F88","v":0}]
[]
[null,{"$f":"B88+0.001","v":{"v":2.0049999999999994,"d":"2.005"}},"Class A network loop card [ZP2AB-NLM2]","No",1,null,{"$f":"E90*F90","v":0}]
[]
[null,{"$f":"B90+0.001","v":{"v":2.0059999999999993,"d":"2.006"}},"Eight programmable output card [ZP2AB-RL8]","No",1,null,{"$f":"E92*F92","v":0}]
[]
[null,{"$f":"B92+0.001","v":{"v":2.0069999999999992,"d":"2.007"}},"Network card [ZP2AB-NET1]","No",1,null,{"$f":"E94*F94","v":0}]
[]
[null,null,"The Service of Existing Panels, 24V (LCD & controls), 230V, at surrounding buildings:"]
[]
[null,{"$f":"B94+0.001","v":{"v":2.007999999999999,"d":"2.008"}},"Service of existing Panels","No",9,null,{"$f":"E98*F98","v":0}]
[]
[null,{"$f":"B98+0.001","v":{"v":2.008999999999999,"d":"2.009"}},"Boxed power supply, 24VDC 1A","No","Incl"]
[]
[null,{"$f":"B100+0.001","v":{"v":2.009999999999999,"d":"2.010"}},"Panel driver board","No","Incl"]
[]
[null,{"$f":"B102+0.001","v":{"v":2.010999999999999,"d":"2.011"}},"Two core twisted cable 2m that is shielded and screened for RS485 communication daisy chained and teed off between the control panels. Peer-to-peer network.","No",{"$f":"E98+E82","v":10},null,{"$f":"E104*F104","v":0}]
[]
[null,null,"Service & Repair Including supply and installation of new Addressable Loop Devices "]
[]
[null,{"$f":"B104+0.001","v":{"v":2.0119999999999987,"d":"2.012"}},"Ceiling : Optical sensor [ZP730-2] c/w surface mounting sensor base [ZP7-SB1]","No",{"$f":"102+68+3+13+12+13+9+12+8+1+3","v":244},null,{"$f":"E108*F108","v":0}]
[]
[null,{"$f":"B108+0.001","v":{"v":2.0129999999999986,"d":"2.013"}},"Void : Optical sensor [ZP730-2] c/w surface mounting sensor base [ZP7-SB1]","No",{"$f":"102+68","v":170},null,{"$f":"E110*F110","v":0}]
[]
[null,{"$f":"B110+0.001","v":{"v":2.0139999999999985,"d":"2.014"}},"Ceiling : Optical sensor [ZP730-2] c/w surface mounting isolator sensor base [ZP7-IB]","No",120,null,{"$f":"E112*F112","v":0}]
[]
[null,{"$f":"B112+0.001","v":{"v":2.0149999999999983,"d":"2.015"}},"Void : Optical sensor [ZP730-2] c/w surface mounting isolator sensor base [ZP7-IB]","No",90,null,{"$f":"E114*F114","v":0}]
[]
[null,{"$f":"B114+0.001","v":{"v":2.0159999999999982,"d":"2.016"}},"Combination Optical & Heat sensor [ZP732-2] c/w surface mounting sensor base [ZP7-SB1]","No",40,null,{"$f":"E116*F116","v":0}]
[]
[]
[]
[]
[]
[]
[null,null,"Carried Forward to Next Page"]
[]
[]
[null,"ITEM NO","DESCRIPTION","UNIT","QTY","RATE","AMOUNT"]
[null,null,"SCHEDULE 2: "]
[null,null,{"$f":"C74","v":" FIRE DETECTION INSTALLATIONS"}]
[]
[null,null,"Brought Forward from Previous Page"]
[]
[null,{"$f":"B116+0.001","v":{"v":2.016999999999998,"d":"2.017"}},"Omnidirectional Sounder beacon (50dB) and flashing light (strobe) [ZP755HAV-2W - white] c/w surface mounting sensor base [ZP7-SB1]","No",{"$f":"14+9+2+4+2+2+2+4+4+1","v":44},null,{"$f":"E132*F132","v":0}]
[]
[null,{"$f":"B132+0.001","v":{"v":2.017999999999998,"d":"2.018"}},"Optical sensor [ZP755B-2] c/w sounder base [ZP7-SB1]","No",25,null,{"$f":"E134*F134","v":0}]
[]
[null,{"$f":"B134+0.001","v":{"v":2.018999999999998,"d":"2.019"}},"Beacon [ZP755V] c/w base [ZP7-SB1]","No",25,null,{"$f":"E136*F136","v":0}]
[]
[null,{"$f":"B136+0.001","v":{"v":2.019999999999998,"d":"2.020"}},"Heat sensor [ZP720-3] c/w surface mounting sensor base [ZP7-SB1]","No",16,null,{"$f":"E138*F138","v":0}]
[]
[null,{"$f":"B138+0.001","v":{"v":2.0209999999999977,"d":"2.021"}},"Omnidirectional Sounder beacon, red (102 dBA) [ZP755HAV- 2R] c/w base [ZP7-SB1]","No",20,null,{"$f":"E140*F140","v":0}]
[]
[null,{"$f":"B140+0.001","v":{"v":2.0219999999999976,"d":"2.022"}},"Heat-rise detector with base [ZP7-SB1]","No",8,null,{"$f":"E142*F142","v":0}]
[]
[null,{"$f":"B142+0.001","v":{"v":2.0229999999999975,"d":"2.023"}},"The supply and installation of Manual Call point mounted 1400mm AFFL at indicated positions c/w EN54 marking [ZP785-3] - use with DMN787","No",{"$f":"4+2+4+1+1+2+1","v":15},null,{"$f":"E144*F144","v":0}]
[]
[null,{"$f":"B144+0.001","v":{"v":2.0239999999999974,"d":"2.024"}},"Mini interface unit [A45E-2] and mini relay unit [A50E-2] with Surface box to suite (IP66, 2 single or 1 double) [SMB-DIN1]","No",9,null,{"$f":"E146*F146","v":0}]
[]
[null,{"$f":"B146+0.001","v":{"v":2.0249999999999972,"d":"2.025"}},"Supply and Installation of Panel Loop and Networking wiring, PVC conduit and cable trunking (P8000 with covers and hangers) as per Tender drawing reticulation."]
[null,null,"Panel 1 (Ceiling & Void): PH120 Fire Resistant Cable 2 Core, 1.5mm"]
[]
[null,{"$f":"B148+0.001","v":{"v":2.025999999999997,"d":"2.026"}},"P8000 cable trunking (WxH: 76 x 76mm); hangers  c/w nuts and bolts, bends, tees etc.","m",{"$f":"250+10+50+16+25+15+50+50+6+250","v":722},null,{"$f":"E151*F151","v":0}]
[]
[null,{"$f":"B151+0.001","v":{"v":2.026999999999997,"d":"2.027"}},"25mm PVC conduiting c/w hangers, saddles, screws,  nuts and bolts, bends, tees etc.","m",{"$f":"3*(E138+E132+E110+E108)","v":1422},null,{"$f":"E153*F153","v":0}]
[]
[null,{"$f":"B153+0.001","v":{"v":2.027999999999997,"d":"2.028"}},"The supply and installation of MAESTRO Software and Remote Diagnostics function via IP"]
[]
[null,{"$f":"B155+0.001","v":{"v":2.028999999999997,"d":"2.029"}},"MAESTRO System complete with ZP2AB-MD3 Modem for remote diagnostics into Control Panels at specified location.","No",1,null,{"$f":"E157*F157","v":0}]
[]
[null,{"$f":"B157+0.001","v":{"v":2.0299999999999967,"d":"2.030"}},"RS232 Port for port for MAESTRO, Pager, or Modem control lines into Control Panel at specified location.","No",1,null,{"$f":"E159*F159","v":0}]
[]
[null,{"$f":"B159+0.001","v":{"v":2.0309999999999966,"d":"2.031"}},"RS232 cable to connect PC to Control Panel 1 at specified location.","No",1,null,{"$f":"E161*F161","v":0}]
[]
[null,null,"Direct Link with Fire Services Department"]
[]
[null,{"$f":"B161+0.001","v":{"v":2.0319999999999965,"d":"2.032"}},"REMRAD or Similar system complete with all the frequency license fees and all related costs.","No",1,null,{"$f":"E165*F165","v":0}]
[]
[null,null,"Associated Cables and Reticulation Accessories"]
[]
[null,{"$f":"B165+0.001","v":{"v":2.0329999999999964,"d":"2.033"}},"Supply and Installation of loop PH30 Fire Resistant Cable 2 Core, 1.5mm wiring and cable trunking (P8000 with covers and hangers)","m",{"$f":"(2*E153)+(2*E151)","v":4288},null,{"$f":"E169*F169","v":0}]
[]
[]
[null,null,"Carried Forward to Summary Page",{"$nulls":3},{"$f":"G130+SUM(G132:G170)","v":0}]
[null,"ITEM NO","DESCRIPTION","UNIT","QTY","RATE","AMOUNT"]
[null,null,"SCHEDULE 3: "]
[null,{"v":3,"d":"3.000"},"SERVICE & REPAIR INERT FIRE SUPPRESSION SYSTEMS"]
[]
[null,{"$f":"B175+0.001","v":3.001},"Service & Repair CTB IT & Server Rooms Fire Suppression Systems (Inergen & FM200), including piping, nozzles, extinguishant release panel, etc.","No",11,null,{"$f":"E177*F177","v":0}]
[]
[null,{"$f":"B177+0.001","v":3.002},"Service & Repair Main Electrical Substation & Transformer Rooms Fire Suppression Systems (Inergen & FM200), including piping, nozzles, extinguishant release panel, etc.","No",1,null,{"$f":"E179*F179","v":0}]
[]
[null,{"$f":"B179+0.001","v":{"v":3.0029999999999997,"d":"3.003"}},"Service & Repair Mechanical & Electrical Offices IT & Server Rooms Fire Suppression Systems (Inergen & FM200), including piping, nozzles, extinguishant release panel, etc.","No",2,null,{"$f":"E181*F181","v":0}]
[]
[null,null,"NEW INERT FIRE SUPPRESSION SYSTEMS"]
[]
[null,{"$f":"B181+0.001","v":{"v":3.0039999999999996,"d":"3.004"}},"Supply & Install new system for Generator Room -  Inergen, including piping, nozzles, extinguishant release panel, etc.","Item","Sum",null,{"$f":"F185","v":0}]
[null,"a","Supply and install Gas cylinder  80L Inergen inert gas-300 bar","No",10,"incl."]
[null,"b","Supply and install Gas cylinder  bracket 80L","No",{"$f":"E186","v":10},"incl."]
[null,"c","Supply and install Ci IV8 Manosw-Plug","No",{"$f":"E187","v":10},"incl."]
[null,"d","Supply and install Manoswitch cable start kit","m",{"$f":"1","v":1},"incl."]
[null,"e","Supply  and install Ci IS8 Solenoid Manual Actuator","No",1,"incl."]
[null,"f","Supply  and install Nozzle calibrated IN-32 NPT","No",5,"incl."]
[null,"g","Supply  and install CI MT 5 Manifold c/w orifice","No",1,"incl."]
[null,"h","Supply  and install Cry rail 5x80L 1600mm","No",2,"incl."]
[null,"i","Supply  and install Hose DN10-400 0.5m Ci Disc Elb","No",0,"incl."]
[null,"j","Supply  and install Hose DN10-400 1.0m Ci Disc Elb","No",{"$f":"E186","v":10},"incl."]
[null,"k","Supply  and install conventional optical detector","No",{"$f":"E191","v":5},"incl."]
[null,"l","Supply  and install conventional detector base","No",{"$f":"E196","v":5},"incl."]
[null,"m","Supply  and install fire suppression panel","No",1,"incl."]
[null,"n","Supply  and install start/stop switch","No",1,"incl."]
[null,"o","Supply  and install beacon and sounder","No",3,"incl."]
[null,"p","Supply  and install fire beil","No",1,"incl."]
[null,"q","Supply  and install 100m fire cable 2 core 1.0mm","No",1,"incl."]
[null,"r","Supply  and install Gas pipes,Manifolds, three way valves and Two way valves as shown on tender drawings","m",50,"incl."]
[]
[null,{"$f":"B185+0.001","v":{"v":3.0049999999999994,"d":"3.005"}},"Supply & Install new system for Electrical Substation C & Transformer Rooms -  Inergen, including piping, nozzles, extinguishant release panel, etc.","Item","Sum",0]
[null,"a","Supply and install Gas cylinder  80L Inergen inert gas-300 bar","No",5,"incl."]
[null,"b","Supply and install Gas cylinder  bracket 80L","No",{"$f":"E206","v":5},"incl."]
[null,"c","Supply and install Ci IV8 Manosw-Plug","No",{"$f":"E207","v":5},"incl."]
[null,"d","Supply and install Manoswitch cable start kit","m",{"$f":"1","v":1},"incl."]
[null,"e","Supply  and install Ci IS8 Solenoid Manual Actuator","No",1,"incl."]
[null,"f","Supply  and install Nozzle calibrated IN-32 NPT","No",2,"incl."]
[null,"g","Supply  and install CI MT 5 Manifold c/w orifice","No",1,"incl."]
[null,"h","Supply  and install Cry rail 5x80L 1600mm","No",1,"incl."]
[null,"i","Supply  and install Hose DN10-400 0.5m Ci Disc Elb","No",0,"incl."]
[null,"j","Supply  and install Hose DN10-400 1.0m Ci Disc Elb","No",{"$f":"E206","v":5},"incl."]
[null,"k","Supply  and install conventional optical detector","No",{"$f":"E211","v":2},"incl."]
[null,"l","Supply  and install conventional detector base","No",{"$f":"E216","v":2},"incl."]
[null,"m","Supply  and install fire suppression panel","No",1,"incl."]
[null,"n","Supply  and install start/stop switch","No",1,"incl."]
[null,"o","Supply  and install beacon and sounder","No",2,"incl."]
[null,"p","Supply  and install fire beil","No",1,"incl."]
[null,"q","Supply  and install 100m fire cable 2 core 1.0mm","No",1,"incl."]
[null,"r","Supply  and install Gas pipes,Manifolds, three way valves and Two way valves as shown on tender drawings","m",20,"incl."]
{"$rows_empty":8}
[null,null,"Carried Forward to Summary Page"]
[]
[null,"ITEM NO","DESCRIPTION","UNIT","QTY","RATE","AMOUNT"]
[null,null,"SCHEDULE 4 : "]
[null,{"v":4,"d":"4.000"},"FIRE  PROTECTION EQUIPMENT  & EMERGENCY EVACUATION"]
[]
[]
[]
[]
[null,{"$f":"#REF!+0.001","v":{"$error":"#REF!"}},"New - 25mm Dia Fire Hose Reels SANS approved and supplied and fitted including, stop valves,hose reel base, clamps,nozzle brackets,fixing brackets,etc  including  length of 30m  connecting pipe per reel as per the specification and tender drawings.","No",{"$f":"9+5+1+1","v":16}]
[]
[null,{"$f":"B241+0.001","v":{"$error":"#REF!"}},"Supply delivery and fitment of 100mm non-return valve and two gate valves as per tender specification and drawings.   ","No",1]
[]
[null,{"$f":"B243+0.001","v":{"$error":"#REF!"}},"Fire Hose Reel Cabinet","No",0,null,"Rate Only"]
[]
[null,null,"HAND-HELD PORTABLE  FIRE FIGHTING EQUIPMENT"]
[]
[null,{"$f":"B245+0.001","v":{"$error":"#REF!"}},"Supply and install fire extinguishers SANS approved. Complete  with meranti  backing boards,steel bases,mounting brackets and wall anchors as per the tender drawings or detailed specifications. 5 kg CO2","No",{"$f":"1+2+3+2","v":8}]
[]
[null,{"$f":"B249+0.001","v":{"$error":"#REF!"}},"Supply and install fire extinguishers SANS approved. Complete  with meranti  backing boards,steel bases,mounting brackets and wall anchors as per the tender drawings or detailed specifications. 4.5 kg DCP","No",{"$f":"1+2*E241","v":33}]
[]
[null,{"$f":"B251+0.001","v":{"$error":"#REF!"}},"Fire Extinguishers  Cabinet  for 5 kg CO2, Fire cabinets must be of a glass fibre with clear polycarbonate lids.","No",{"$f":"E249","v":8}]
[]
[null,{"$f":"B253+0.001","v":{"$error":"#REF!"}},"Fire Extinguishers cabinet 4.5 kg DCP, Fire cabinets must be of a glass fibre with clear polycarbonate lids.","No",{"$f":"E251","v":33}]
[]
[null,{"$f":"B253+0.001","v":{"$error":"#REF!"}},"Supply and install fire extinguishers SANS approved. Complete  with meranti  backing boards,steel bases,mounting brackets and wall anchors as per the tender drawings or detailed specifications. 10 kg CO2","No",{"$f":"3+2+2+1","v":8}]
[]
[null,{"$f":"B257+0.001","v":{"$error":"#REF!"}},"Supply and install fire extinguishers SANS approved. Complete  with meranti  backing boards,steel bases,mounting brackets and wall anchors as per the tender drawings or detailed specifications. 9.0 kg DCP","No",{"$f":"3+1+1+1","v":6}]
[]
[null,{"$f":"B259+0.001","v":{"$error":"#REF!"}},"Fire Extinguishers  Cabinet  for 10 kg CO2, Fire cabinets must be of a glass fibre with clear polycarbonate lids.","No",{"$f":"E257","v":8}]
[]
[null,{"$f":"B261+0.001","v":{"$error":"#REF!"}},"Fire Extinguishers cabinet 9.0 kg DCP, Fire cabinets must be of a glass fibre with clear polycarbonate lids.","No",{"$f":"E259","v":6}]
[]
[null,null,"Carried Forward to Next Page"]
[]
[null,"ITEM NO","DESCRIPTION","UNIT","QTY","RATE","AMOUNT"]
[null,null,"SCHEDULE 4 : "]
[null,null,{"$f":"C236","v":"FIRE  PROTECTION EQUIPMENT  & EMERGENCY EVACUATION"}]
[]
[null,null,"Brought Forward from Previous Page"]
[]
[null,null,"FIRE  PROTECTION EQUIPMENT  & EMERGENCY EVACUATION"]
[]
[null,{"$f":"B263+0.001","v":{"$error":"#REF!"}},"E1/E2, Size:190mm x 380mm (h x w) double sided Photoluminescent sign framed in natural anodised aluminium.Supply and Install with steel wire and ceiling tee hook/onto Mild steel bracket at 3.0meters from finished floor level/mechanically mounted onto wall/fixture","No.",{"$f":"11+2+4+1+2+2+1+1","v":24},null,{"$f":"E275*F275","v":0}]
[]
[null,{"$f":"B275+0.001","v":{"$error":"#REF!"}},"E1/E2, Size:380mm x 190mm (h x w) Vertical Projecting double sided Photoluminescent sign framed in natural anodised aluminium.Supply and Install with steel wire and ceiling tee hook/onto Mild steel bracket at 3.0meters from finished floor level/mechanically mounted onto wall/fixture","No.",0,null,"Rate Only"]
[]
[null,{"$f":"B277+0.001","v":{"$error":"#REF!"}},"E2, Size:190mm x 380mm  (h x w)  Photoluminescent double sided  sign with back plate framed in natural anodised aluminium. Supply and Install with steel wire and ceiling tee hook/onto Mild steel bracket at 3.0meters from finished floor level/mechanically mounted onto wall/fixture","No.",{"$f":"1+2","v":3},null,{"$f":"E279*F279","v":0}]
[]
[null,{"$f":"B279+0.001","v":{"$error":"#REF!"}},"E1, Size:190mm x 380mm (h x w) double sided Photoluminescent sign with back plate framed in natural anodised aluminium.Supply and Install with steel wire and ceiling tee hook/onto Mild steel bracket at 3.0meters from finished floor level/mechanically mounted onto wall/fixture","No.",{"$f":"16+1","v":17},null,0]
[]
[null,{"$f":"B281+0.001","v":{"$error":"#REF!"}},"E3, Size:190mm x 380mm (h x w) double sided Photoluminescent sign with back plate framed in natural anodised aluminium frame. Supply and Install with steel wire and ceiling tee hook/onto Mild steel bracket at 3.0meters from finished floor level/mechanically mounted onto wall/fixture","No.",{"$f":"16+6+2+4+2+3+3+2+1","v":39},null,0]
[]
[null,{"$f":"B283+0.001","v":{"$error":"#REF!"}},"E16/E17, Size:290mm x 870mm (h x w) double sided Photoluminescent sign framed in natural anodised aluminium. Supply and Install with steel wire and ceiling tee hook/onto Mild steel bracket at 3.0meters from finished floor level/mechanically mounted onto wall/fixture","No.",{"$f":"4","v":4},null,0]
[]
[null,{"$f":"B285+0.001","v":{"$error":"#REF!"}},"E13/E14, Size:190mm x 380mm (h x w) double sided Photoluminescent sign framed in natural anodised aluminium. Supply and Install with steel wire and ceiling tee hook/onto Mild steel bracket at 3.0meters from finished floor level/mechanically mounted onto wall/fixture","No.",4,null,{"$f":"E287*F287","v":0}]
[]
[null,{"$f":"B287+0.001","v":{"$error":"#REF!"}},"E13, Size:190mm x 380mm (h x w)  Photoluminescent double sided  sign with back plate framed in natural anodised aluminium frame. Supply and Install with steel wire and ceiling tee hook/onto Mild steel bracket at 3.0meters from finished floor level/mechanically mounted onto wall/fixture","No.",0,null,"Rate Only"]
[]
[null,{"$f":"B289+0.001","v":{"$error":"#REF!"}},"F2/F3, Size:190mm x 760mm (h x w) double sided Photoluminescent sign framed in natural anodised aluminium. Supply and Install with steel wire and ceiling tee hook/onto Mild steel bracket at 3.0meters from finished floor level/mechanically mounted onto wall/fixture","No.",0,null,"Rate Only"]
[]
[null,{"$f":"B291+0.001","v":{"$error":"#REF!"}},"F1, Size:190mm x 760mm (h x w) Photoluminescent double sided  sign with back plate framed in natural anodised aluminium. Supply and Install with steel wire and ceiling tee hook/onto Mild steel bracket at 3.0meters from finished floor level/mechanically mounted onto wall/fixture","No.",0,null,"Rate Only"]
[]
[null,{"$f":"B293+0.001","v":{"$error":"#REF!"}},"F5/F6, Size:190mm x 570mm (h x w) double sided Photoluminescent sign framed in natural anodised aluminium. Supply and Install with steel wire and ceiling tee hook/onto Mild steel bracket at 3.0meters from finished floor level/mechanically mounted onto wall/fixture","No.",0,null,"Rate Only"]
[]
[null,{"$f":"B295+0.001","v":{"$error":"#REF!"}},"F5, Size:190mm x 570mm (h x w) Photoluminescent double sided  sign with back plate framed in natural anodised aluminium frame. Supply and Install with steel wire and ceiling tee hook/onto Mild steel bracket at 3.0meters from finished floor level/mechanically mounted onto wall/fixture","No.",0,null,"Rate Only"]
[]
[null,{"$f":"B297+0.001","v":{"$error":"#REF!"}},"F4, Size:190mm x 570mm (h x w) double sided Photoluminescent sign with back plate framed in natural anodised aluminium. Supply and Install with steel wire and ceiling tee hook/onto Mild steel bracket at 3.0meters from finished floor level/mechanically mounted onto wall/fixture","No.",{"$f":"E241","v":16},null,{"$f":"F299*E299","v":0}]
[]
[]
[null,null,"Carried Forward to Next Page"]
[]
[null,"ITEM NO","DESCRIPTION","UNIT","QUANTITY","RATE","AMOUNT"]
[null,null,"SCHEDULE 4 : "]
[null,null,{"$f":"C236","v":"FIRE  PROTECTION EQUIPMENT  & EMERGENCY EVACUATION"}]
[]
[null,null,"Brought Forward from Previous Page"]
[]
[null,null,"FIRE  PROTECTION EQUIPMENT, FIRE WALLS & EMERGENCY EVACUATION LAYOUT - CONTINUED"]
[{"$nulls":6},"Rate Only"]
[null,{"$f":"B299+0.001","v":{"$error":"#REF!"}},"F18/F21, Size:190mm x 380mm (h x w) double sided Photoluminescent sign framed in natural anodised aluminium.Supply and Install with steel wire and ceiling tee hook/onto Mild steel bracket at 3.0meters from finished floor level/mechanically mounted onto wall/fixture","No.",3,null,{"$f":"E312*F312","v":0}]
[]
[null,{"$f":"B312+0.001","v":{"$error":"#REF!"}},"F15, Size:190mm x 380mm (h x w) Photoluminescent double sided  sign with back plate framed in natural anodised aluminium frame. Supply and Install with steel wire and ceiling tee hook/onto Mild steel bracket at 3.0meters from finished floor level/mechanically mounted onto wall/fixture","No.",4,null,{"$f":"E314*F314","v":0}]
[]
[null,{"$f":"B314+0.001","v":{"$error":"#REF!"}},"F20/F17, Size:190mm x 380mm (h x w) Photoluminescent double sided  sign with back plate framed in natural anodised aluminium frame. Supply and Install with steel wire and ceiling tee hook/onto Mild steel bracket at 3.0meters from finished floor level/mechanically mounted onto wall/fixture","No.",0,null,"Rate Only"]
[]
[null,{"$f":"B316+0.001","v":{"$error":"#REF!"}},"F14, Size:190mm x 380mm (h x w) Photoluminescent double sided  sign with back plate framed in natural anodised aluminium frame. Supply and Install with steel wire and ceiling tee hook/onto Mild steel bracket at 3.0meters from finished floor level/mechanically mounted onto wall/fixture","No.",0,null,"Rate Only"]
[]
[null,{"$f":"B318+0.001","v":{"$error":"#REF!"}},"F16/F19, Size:190mm x 380mm (h x w) double sided Photoluminescent sign framed in natural anodised aluminium. Supply and Install with steel wire and ceiling tee hook/onto Mild steel bracket at 3.0meters from finished floor level/mechanically mounted onto wall/fixture","No.",0,null,"Rate Only"]
[]
[null,{"$f":"B320+0.001","v":{"$error":"#REF!"}},"F13, Size:190mm x 380mm (h x w) double sided Photoluminescent sign without back plate and framed in natural anodised aluminium. Supply and Install with steel wire and ceiling tee hook/onto Mild steel bracket at 3.0meters from finished floor level/mechanically mounted onto wall/fixture","No.",23,null,{"$f":"E322*F322","v":0}]
[]
[null,{"$f":"B322+0.001","v":{"$error":"#REF!"}},"Emergency Assembly Point (Custom sign to industry standards) Size:1000mm x 1000mm (h x w), three sided vinyl sign without back plate (0.8) and mild steel frame of square tubing (30 x 30mm) mounted onto Diameter 80mm pole. Bottom of sign to be at least 2.4m from finishe floor level and mounted with 4 M10 rawl bolts. Supply and Install the entire scope.","No.",0,null,"Rate Only"]
[]
[null,{"$f":"B324+0.001","v":{"$error":"#REF!"}},"F41, Size:290mm x 290mm (h x w) double sided Photoluminescent sign without back plate and framed in natural anodised aluminium. Supply and Install onto column at 2.5meters from finished floor level.","No.",{"$f":"6+5","v":11},null,{"$f":"E326*F326","v":0}]
[]
[null,{"$f":"B326+0.001","v":{"$error":"#REF!"}},"F39, Size:190mm x 190mm (h x w) double sided Photoluminescent sign framed in natural anodised aluminium frame. Supply and Install with steel wire and ceiling tee hook OR mechanically mounted onto wall/fixture at lift shafts","No.",4,null,0]
{"$rows_empty":22}
[null,null,"Carried Forward to Next Page"]
[]
[null,"ITEM NO","DESCRIPTION"]
[null,null,"SCHEDULE 3 : "]
[null,"Schedule","FINAL SUMMARY",{"$nulls":3},"AMOUNT"]
[null,"No"]
[]
[]
[null,{"v":1,"d":"1.000"},{"$f":"C4","v":"PRELIMINARY & GENERAL ITEMS"},"Page","-1-",null,{"$f":"F359","v":0}]
[]
[null,{"v":2,"d":"2.000"},{"$f":"C74","v":" FIRE DETECTION INSTALLATIONS"},"Page","-2-",null,{"$f":"F361","v":0}]
[]
[null,{"v":3,"d":"3.000"},{"$f":"C175","v":"SERVICE & REPAIR INERT FIRE SUPPRESSION SYSTEMS"},"Page","-3-",null,{"$f":"F363","v":0}]
[]
[null,{"v":4,"d":"4.000"},{"$f":"C236","v":"FIRE  PROTECTION EQUIPMENT  & EMERGENCY EVACUATION"},"Page","-6-",null,{"$f":"F365","v":0}]
[]
[null,null,"CONTINGENCIES (10%)","Item",1,null,{"$f":"F367","v":0},null,{"v":0.1,"d":"10%"}]
{"$rows_empty":53}
[null," ","CARRIED TO FORM OF TENDER (EXCL. 15% VAT)",null,"R",null,{"$f":"SUM(G359:G419)","v":0}]